Workbook

Sheet Introduction
B3: KSU-Feeder Cattle Risk Management Tool
B5: An Excel spreadsheet for evaluating feeder cattle risk management strategies
L8: Version- 1.22.2025
B28: INTRODUCTION
B29: This spreadsheet was developed as a decision-aid tool for producers interested in managing feeder cattle price risk. It can be used to compare the Expected Net Selling Price using alternative risk management tools available for pricing feeder cattle.
B31: INSTRUCTIONS FOR THE USER:
B32: Be sure to "Enable Content" and "Enable Macros" for the spreadsheet to function correctly.
B33: In the Comparison sheet all blue numbers are input by the user. All black numbers are calculated using data provided by the user. The spreadsheet automatically recalculates every time an additional input is entered. Thus, it is important to wait until all data have been entered and reviewed before interpreting any of the calculated results (i.e., black numbers). Most of the input cells (i.e., blue number) have a red diamond in the upper right hand corner of the cell. By moving your mouse cursor over this diamond, a brief description of the input will be displayed on the screen.
B40: FOR MORE INFORMATION:
B41: To learn more about managing price risk and using LRP insurance visit www.AgManager.info or click on the following links:
C42: LRP Insurance Information | I42: Price Risk Management Information
B43: Updated by:
B45: Glynn T. Tonsor, Ph.D.
B46: Agricultural Economist
B47: Department of Agricultural Economics
B48: Kansas State University
B49: gtonsor@k-state.edu
B50: 785-532-1518
B52: ACKNOWLEDGEMENTS:
B53: This spreadsheet was originally developed by Kevin Dhuyvetter, Ph.D., Agricultural Economist, Kanasas State University. The authors gratefully acknowledge funding provided by USDA's Risk Management Agency (RMA) for initial development of this feeder cattle risk management tool.
B55: Copyright 2025 AgManager.info, K-State Department of Agricultural Economics

Sheet Comparison
B2: Comparison of Alternative Risk Management Strategies for Pricing Feeder Cattle
B4: Current date | H4: 2026-01-21 | L4: Futures | M4: LRP | N4: Put
B5: ="Number of head (number of head to match futures contract = "&FIXED(L117/H6,0)&")" -> Number of head (number of head to match futures contract = 71) | H5: 71 | J5: Number of contracts | L5: 1 | M5: 71 | N5: 1
B6: ="Expected weight at time of sale, lbs/head -- "&IF(H6<L115,"(use weight 1 for LRP)","(use weight 2 for LRP)") -> Expected weight at time of sale, lbs/head -- (use weight 2 for LRP) | H6: 700 | J6: Strike price(s), $/cwt | M6: 353.59 | N6: 353.05
B7: Pounds of cattle expected to sell in cash market, lbs | H7: =H5*H6 -> 49700 | J7: Premium, $/cwt | M7: =VLOOKUP(M6,B105:D117,3,1) -> 10.49 | N7: =VLOOKUP(N6,B22:D34,2,1) -> 14 | O7: =N6-N7 -> 339.05
B8: Expected sale date | H8: 2026-04-22 | M8: =IF(M5>H5,"Cannot buy LRP for more cattle than owned!","") -> 
B9: Feeder cattle type | H9: Steers | K9: Expected Net Selling Prices | P9: 5
J10: Futures | P10: dec to april 15
B11: CME futures contract for hedging (Jan, Mar, Apr, May, Aug, Sep, Oct, Nov) | H11: April | J11: price | K11: Cash | L11: Hedge | M11: LRP | N11: Put | P11: early july to aug (90-110 days)
B12: Commission for roundtrip (sell and buy) futures trade, $/contract | H12: 80 | J12: 310 | K12: =J12+H$15 -> 310 | L12: =IF(L$5=0,"n/a",(K12/100*H$7+((H$14-J12)*L$117/100-H$12)*L$5)/H$7*100) -> 353.1488934 | M12: =IF(OR(M$5=0,M$5>H$5),"n/a",(K12/100*H$7-M$7*H$6/100*M$5+IF(M$6>J12*L$113,(M$6-J12*L$113)*H$6/100*M$5,0))/H$7*100) -> 343.1 | N12: =IF(N$5=0,"n/a",(K12/100*H$7-(N$7*L$117/100+H$13)*N$5+IF(N$6>J12,((N$6-J12)*L$117/100-H$13)*N$5))/H$7*100) -> 339.0442656 | P12: 800 lbs | Q12: =MAX(K12:P12) -> 353.1488934
B13: Commission to buy or sell options contract, $/contract | H13: 45 | J13: =+J12+J$21 -> 318 | K13: 318 | L13: =IF(L$5=0,"n/a",(K13/100*H$7+((H$14-J13)*L$117/100-H$12)*L$5)/H$7*100) -> 353.1006036 | M13: =IF(OR(M$5=0,M$5>H$5),"n/a",(K13/100*H$7-M$7*H$6/100*M$5+IF(M$6>J13*L$113,(M$6-J13*L$113)*H$6/100*M$5,0))/H$7*100) -> 343.1 | N13: =IF(N$5=0,"n/a",(K13/100*H$7-(N$7*L$117/100+H$13)*N$5+IF(N$6>J13,((N$6-J13)*L$117/100-H$13)*N$5))/H$7*100) -> 338.9959759 | Q13: =MAX(K13:P13) -> 353.1006036
B14: ="Futures price -- "&H11&" CME feeder cattle contract, $/cwt*" -> Futures price -- April CME feeder cattle contract, $/cwt* | H14: 353.05 | J14: 326 | K14: 326 | L14: 353.0523139 | M14: 343.1 | N14: 338.9476861 | Q14: 353.0523139
B15: ="Expected basis (cash - "&H11&" CME futures), $/cwt#" -> Expected basis (cash - April CME futures), $/cwt# | H15: 0 | J15: 334 | K15: 334 | L15: 353.0040241 | M15: 343.1 | N15: 338.8993964 | Q15: 353.0040241
B16: LRP expected ending value for relevant time period^ | H16: 353.59 | J16: 342 | K16: 342 | L16: 352.9557344 | M16: 343.1 | N16: 338.8511066 | O16: =F22-H22 -> 343.1 | Q16: 352.9557344
B17: End date for LRP contract | H17: 2026-04-10 | J17: 350 | K17: 350 | L17: 352.9074447 | M17: 343.1 | N17: 338.8028169 | Q17: 352.9074447
J18: 358 | K18: 358 | L18: 352.8591549 | M18: 347.51 | N18: 343.8249497 | Q18: 358
B19: CME feeder cattle option premiums | F19: LRP coverage levels and premiums | J19: 366 | K19: 366 | L19: 352.8108652 | M19: 355.51 | N19: 351.8249497 | Q19: 366
B20: Strike price | C20: Put | D20: Call | F20: Coverage Level | H20: LRP cost | J20: 374 | K20: 374 | L20: 352.7625755 | M20: 363.51 | N20: 359.8249497 | Q20: 374
B21: $/cwt | C21: $/cwt | D21: $/cwt | F21: $/cwt | G21: -%- | H21: $/cwt | J21: 8 | K21: <= futures price increment | O21: Signifies maximum price in row
B22: =B23-2 -> 342 | F22: 353.59 | G22: =F22/H$16 -> 1 | H22: 10.49
B23: 344 | F23: 350.05 | G23: 0.9899884046 | H23: 9.27 | K23: Cash | L23: Futures Hedge | M23: ="LRP, ($"&FIXED(M6,0)&")" -> LRP, ($354) | N23: ="Put, ($"&FIXED(N6,0)&")" -> Put, ($353) | O23: ="Hedge & Call, ($"&FIXED(O6,0)&")" -> Hedge & Call, ($0) | P23: ="Put & Call, ($"&FIXED(P6,0)&"/$"&FIXED(Q6,0)&")" -> Put & Call, ($0/$0)
B24: 346 | F24: 346.52 | G24: 0.9800050906 | H24: 8.15
B25: 348 | F25: 342.98 | G25: 0.9699934953 | H25: 7.08
B26: 350 | C26: 13.125 | F26: 339.45 | G26: 0.9600101813 | H26: 6.19
B27: 352 | C27: 14 | F27: 335.91 | G27: 0.9499985859 | H27: 5.4
B28: =EVEN(ROUND(H14,0)) -> 354 | C28: 14.925 | F28: 327.07 | G28: 0.9249978789 | H28: 3.46
B29: =B28+2 -> 356 | C29: 15.9 | F29: 318.23 | G29: 0.8999971719 | H29: 2.42
B30: 358 | C30: 16.925 | F30: 309.39 | G30: 0.8749964648 | H30: 1.5
B31: 360 | F31: 300.55 | G31: 0.8499957578 | H31: 1.02
B32: 362 | F32: 282.87 | G32: 0.7999943437 | H32: 0.22
B33: 364 | F33: 265.19 | G33: 0.7499929297
B34: 366
B36: # Websites with information on feeder cattle basis
B37: http://www.agmanager.info/livestock/marketing/graphs/
B38: http://www.beefbasis.com/
B39: * Website with futures prices and option premium quotes
B40: https://www.cmegroup.com/markets/agriculture/livestock/feeder-cattle.quotes.html
B41: ^ Website with LRP coverage levels and premiums
B42: https://www.rma.usda.gov/en/Information-Tools/Livestock-Reports
B44: FeederCattleRiskMgmtTool.xls
F45: Updated by: | G45: Glynn T. Tonsor, PhD
F46: Developed by: | G46: Kevin C. Dhuyvetter, PhD
B101: Data/information used in formulas above -- do not delete!
B103: LRP coverage level | D103: LRP cost | L103: Price | M103: Price
B104: $/cwt | C104: -%- | D104: $/cwt | F104: Feeder cattle type | H104: Type | J104: Weight | K104: Factor | L104: Adj. | M104: Inc.
B105: =F34 -> 0 | C105: =B105/H$16 -> 0 | D105: =IF(H34=0,"n/a",H34) -> n/a | F105: Steers | G105: Weight 1 | H105: =IF(H$9=F105,1,0) -> 1 | J105: =IF(H$6<L$115,1,0) -> 0 | K105: =H105*J105 -> 0 | L105: 1.1 | M105: 2.2
B106: =F33 -> 265.19 | C106: 0.7499929297 | D106: =IF(H33=0,"n/a",H33) -> n/a | F106: Steers | G106: Weight 2 | H106: 1 | J106: =IF(H$6>=L$115,1,0) -> 1 | K106: =H106*J106 -> 1 | L106: 1 | M106: 2
B107: =F32 -> 282.87 | C107: 0.7999943437 | D107: =IF(H32=0,"n/a",H32) -> 0.22 | F107: Heifers | G107: Weight 1 | H107: 0 | J107: =IF(H$6<L$115,1,0) -> 0 | K107: 0 | L107: 1 | M107: 2
B108: =F31 -> 300.55 | C108: 0.8499957578 | D108: =IF(H31=0,"n/a",H31) -> 1.02 | F108: Heifers | G108: Weight 2 | H108: 0 | J108: =IF(H$6>=L$115,1,0) -> 1 | K108: 0 | L108: 0.9 | M108: 1.8
B109: =F30 -> 309.39 | C109: 0.8749964648 | D109: =IF(H30=0,"n/a",H30) -> 1.5 | F109: Braham | G109: Weight 1 | H109: 0 | J109: =IF(H$6<L$115,1,0) -> 0 | K109: 0 | L109: 1 | M109: 2
B110: =F29 -> 318.23 | C110: 0.8999971719 | D110: =IF(H29=0,"n/a",H29) -> 2.42 | F110: Braham | G110: Weigh 2 | H110: 0 | J110: =IF(H$6>=L$115,1,0) -> 1 | K110: 0 | L110: 0.9 | M110: 1.8
B111: =F28 -> 327.07 | C111: 0.9249978789 | D111: =IF(H28=0,"n/a",H28) -> 3.46 | F111: Dairy | G111: Weight 1 | H111: 0 | J111: =IF(H$6<L$115,1,0) -> 0 | K111: 0 | L111: 1 | M111: 1.7
B112: =F27 -> 335.91 | C112: 0.9499985859 | D112: =IF(H27=0,"n/a",H27) -> 5.4 | F112: Dairy | G112: Weight 2 | H112: 0 | J112: =IF(H$6>=L$115,1,0) -> 1 | K112: 0 | L112: 0.8 | M112: 1.6
B113: =F26 -> 339.45 | C113: 0.9600101813 | D113: =IF(H26=0,"n/a",H26) -> 6.19 | F113: LRP adjustment factor used in formulas | L113: =SUMPRODUCT(K105:K112,L105:L112) -> 1 | M113: =SUMPRODUCT(K105:K112,M105:M112) -> 2
B114: =F25 -> 342.98 | C114: 0.9699934953 | D114: =IF(H25=0,"n/a",H25) -> 7.08
B115: =F24 -> 346.52 | C115: 0.9800050906 | D115: =IF(H24=0,"n/a",H24) -> 8.15 | F115: Minimum weight for Wt2 | L115: 600
B116: =F23 -> 350.05 | C116: 0.9899884046 | D116: =IF(H23=0,"n/a",H23) -> 9.27 | F116: Maximum weight for Wt2 | L116: 900
B117: =F22 -> 353.59 | C117: 1 | D117: =IF(H22=0,"n/a",H22) -> 10.49 | F117: Pounds per feeder cattle futures contract | L117: 50000
